[Event "Slovakia Open 2022"]
[Site "Bratislava"]
[Date "2022.10.02"]
[Round "9.26"]
[White "Prochazka, Peter"]
[Black "Melih, Mario"]
[Result "1-0"]
[ECO "B10"]
[WhiteElo "1792"]
[BlackElo "1633"]
[Annotator "NA COMBH"]
[PlyCount "63"]
[EventDate "2022.09.30"]
[EventCountry "SVK"]
[SourceTitle "playchess.com"]
[Source "ChessBase"]
[SourceQuality "1"]
[TimeControl "2700+10"]

1. d3 {[%emt 0:00:03]} d5 {[%emt 0:00:04]} 2. Nd2 {[%emt 0:00:03]} e5 {[%emt 0:00:12]} 3. e4 {[%emt 0:00:03]} c6 {[%emt 0:00:25]} 4. c3 {[%emt 0:00:22]} Nf6 {[%emt 0:00:17]} 5. Be2 {[%emt 0:00:18]} Be7 {[%emt 0:00:13]} 6. Ngf3 {[%emt 0:00:06]} Qc7 {[%emt 0:00:36]} 7. O-O {[%emt 0:00:20]} Be6 {[%emt 0:00:14]} 8. Ng5 {[%emt 0:00:17]} Qd6 {[%emt 0:02:34]} 9. Nxe6 {[%emt 0:02:18]} Qxe6 {[%emt 0:00:03]} 10. Qb3 {[%emt 0:00:45]} Nbd7 {[%emt 0:02:15]} 11. Qxb7 {[%emt 0:01:26]} O-O {[%emt 0:01:11]} 12. Qb3 {[%emt 0:00:03]} a5 {[%emt 0:06:23]} 13. a4 {[%emt 0:00:38]} Rfb8 {[%emt 0:00:36]} 14. Qc2 {[%emt 0:00:02]} Nc5 {[%emt 0:00:10]} 15. Bd1 {[%emt 0:04:02]} Rb7 {[%emt 0:11:13]} 16. Rb1 {[%emt 0:04:49]} Rab8 {[%emt 0:04:30]} 17. b4 {[%emt 0:08:35]} axb4 {[%emt 0:00:48]} 18. cxb4 {[%emt 0:00:46]} Na6 {[%emt 0:00:26]} 19. b5 {[%emt 0:04:37]} cxb5 {[%emt 0:00:11]} 20. axb5 {[%emt 0:07:05]} Nb4 {[%emt 0:02:40]} 21. Qb3 {[%emt 0:04:45]} Rxb5 {[%emt 0:01:03]} 22. Be2 {[%emt 0:04:00]} R5b6 {[%emt 0:02:26]} 23. Qd1 {[%emt 0:00:19]} dxe4 {[%emt 0:03:01]} 24. dxe4 {[%emt 0:00:43]} Rd8 {[%emt 0:00:04]} 25. Qa4 {[%emt 0:00:20]} Rdb8 {[%emt 0:02:11]} 26. Ba3 {[%emt 0:00:29]} Qa2 {[%emt 0:02:57]} 27. Rb2 {[%emt 0:00:18]} Qe6 {[%emt 0:00:54]} 28. Rfb1 {[%emt 0:00:02]} Qd6 {[%emt 0:01:09]} 29. Nc4 {[%emt 0:00:27]} Ra6 {[%emt 0:00:01]} 30. Rxb4 {[%emt 0:00:52]} Rxb4 {[%emt 0:01:08]} 31. Qxb4 {[%emt 0:00:31]} Rxa3 {[%emt 0:00:09]} 32. Nxd6 {[%emt 0:00:06]} 1-0

[Event "Slovakia Open 2022"]
[Site "Bratislava"]
[Date "2022.10.02"]
[Round "9.27"]
[White "Durovka, Stefan"]
[Black "Hlavac, Tomas"]
[Result "0-1"]
[ECO "E67"]
[WhiteElo "1783"]
[BlackElo "1554"]
[Annotator "NA RC COMBH"]
[PlyCount "110"]
[EventDate "2022.09.30"]
[EventCountry "SVK"]
[SourceTitle "playchess.com"]
[Source "ChessBase"]
[SourceQuality "1"]
[TimeControl "2700+10"]

1. Nf3 {[%emt 0:00:04]} Nf6 {[%emt 0:00:01]} 2. c4 {[%emt 0:00:13]} g6 {[%emt 0:00:02]} 3. Nc3 {[%emt 0:00:05]} Bg7 {[%emt 0:00:01]} 4. d4 {[%emt 0:00:02]} d6 {[%emt 0:00:01]} 5. g3 {[%emt 0:00:14]} O-O {[%emt 0:00:03]} 6. Bg2 {[%emt 0:00:04]} c6 {[%emt 0:00:03]} 7. Bg5 {[%emt 0:00:10]} Nbd7 {[%emt 0:00:03]} 8. O-O {[%emt 0:00:05]} a6 {[%emt 0:00:18]} 9. a4 {[%emt 0:00:38]} b6 {[%emt 0:00:30]} 10. Rb1 {[%emt 0:00:09]} Bb7 {[%emt 0:00:16]} 11. Re1 {[%emt 0:00:04]} Re8 {[%emt 0:01:41]} 12. e4 {[%emt 0:00:08]} c5 {[%emt 0:00:52]} 13. dxc5 {[%emt 0:04:51]} Nxc5 {[%emt 0:05:02]} 14. Nd5 {[%emt 0:01:33]} Ncxe4 {[%emt 0:09:53]} 15. Be3 {[%emt 0:01:10]} Nxd5 {[%emt 0:03:26]} 16. cxd5 {[%emt 0:00:03]} Nf6 {[%emt 0:01:18]} 17. Qb3 {[%emt 0:00:51]} Nxd5 {[%emt 0:00:49]} 18. Nd4 {[%emt 0:01:00]} e6 {[%emt 0:04:22]} 19. Rbc1 {[%emt 0:00:18]} Rc8 {[%emt 0:01:07]} 20. h4 {[%emt 0:00:50]} Qd7 {[%emt 0:05:13]} 21. Kh2 {[%emt 0:01:16]} Nxe3 {[%emt 0:00:14]} 22. Bxb7 {[%emt 0:00:17]} Ng4+ {[%emt 0:00:30]} 23. Kh3 {[%emt 0:00:37]} Nxf2+ {[%emt 0:00:08]} 24. Kg2 {[%emt 0:00:24]} Qxb7+ {[%emt 0:00:03]} 25. Kxf2 {[%emt 0:00:12]} Bxd4+ {[%emt 0:00:02]} 26. Ke2 {[%emt 0:01:25]} Rxc1 {[%emt 0:00:20]} 27. Rxc1 {[%emt 0:00:08]} Rc8 {[%emt 0:00:24]} 28. Rxc8+ {[%emt 0:00:41]} Qxc8 {[%emt 0:00:02]} 29. Kd3 {[%emt 0:00:11]} Qc5 {[%emt 0:00:37]} 30. g4 {[%emt 0:00:34]} Bf2 {[%emt 0:00:05]} 31. h5 {[%emt 0:01:45]} Qe3+ {[%emt 0:00:03]} 32. Kc2 {[%emt 0:00:11]} Qxb3+ {[%emt 0:00:02]} 33. Kxb3 {[%emt 0:00:02]} gxh5 {[%emt 0:00:04]} 34. gxh5 {[%emt 0:00:01]} e5 {[%emt 0:00:08]} 35. Kc3 {[%emt 0:00:03]} e4 {[%emt 0:00:02]} 36. Kd2 {[%emt 0:00:02]} e3+ {[%emt 0:00:01]} 37. Ke2 {[%emt 0:00:01]} Kg7 {[%emt 0:00:07]} 38. b4 {[%emt 0:00:02]} Kh6 {[%emt 0:00:03]} 39. b5 {[%emt 0:00:07]} axb5 {[%emt 0:00:12]} 40. axb5 {[%emt 0:00:01]} Kxh5 {[%emt 0:00:03]} 41. Kf3 {[%emt 0:00:04]} Kg5 {[%emt 0:00:07]} 42. Kg2 {[%emt 0:00:05]} Kg4 {[%emt 0:00:09]} 43. Kf1 {[%emt 0:00:03]} d5 {[%emt 0:00:04]} 44. Ke2 {[%emt 0:00:04]} h5 {[%emt 0:00:02]} 45. Kf1 {[%emt 0:00:01]} Kh3 {[%emt 0:00:20]} 46. Ke2 {[%emt 0:00:07]} Kg2 {[%emt 0:00:04]} 47. Kd3 {[%emt 0:00:05]} h4 {[%emt 0:00:03]} 48. Kd4 {[%emt 0:00:04]} e2+ {[%emt 0:00:03]} 49. Kxd5 {[%emt 0:00:10]} e1=Q {[%emt 0:00:09]} 50. Kc6 {[%emt 0:00:01]} Qe6+ {[%emt 0:00:10]} 51. Kb7 {[%emt 0:00:03]} h3 {[%emt 0:00:08]} 52. Ka6 {[%emt 0:00:07]} h2 {[%emt 0:00:03]} 53. Kb7 {[%emt 0:00:02]} h1=Q {[%emt 0:00:04]} 54. Ka6 {[%emt 0:00:05]} Qa1+ {[%emt 0:00:04]} 55. Kb7 {[%emt 0:00:04]} Qd7+ {[%emt 0:00:07]} 0-1

[Event "Slovakia Open 2022"]
[Site "Bratislava"]
[Date "2022.10.02"]
[Round "9.28"]
[White "Tomcikova, Zuzana"]
[Black "Benci, Jozef"]
[Result "1-0"]
[ECO "A05"]
[WhiteElo "1796"]
[BlackElo "1873"]
[Annotator "NA RC COMBH"]
[PlyCount "111"]
[EventDate "2022.09.30"]
[EventCountry "SVK"]
[SourceTitle "playchess.com"]
[Source "ChessBase"]
[SourceQuality "1"]
[TimeControl "2700+10"]

1. Nf3 {[%emt 0:00:04]} Nf6 {[%emt 0:00:06]} 2. g3 {[%emt 0:00:02]} g6 {[%emt 0:00:01]} 3. Bg2 {[%emt 0:00:01]} Bg7 {[%emt 0:00:01]} 4. O-O {[%emt 0:00:03]} O-O {[%emt 0:00:02]} 5. d3 {[%emt 0:00:02]} d6 {[%emt 0:00:37]} 6. e4 {[%emt 0:00:05]} c5 {[%emt 0:00:39]} 7. a4 {[%emt 0:00:38]} Nc6 {[%emt 0:01:58]} 8. c3 {[%emt 0:00:09]} Bd7 {[%emt 0:02:51]} 9. Nbd2 {[%emt 0:00:31]} Rc8 {[%emt 0:03:36]} 10. Nc4 {[%emt 0:01:36]} Qc7 {[%emt 0:13:24]} 11. Nh4 {[%emt 0:01:34]} Be6 {[%emt 0:04:52]} 12. Nd2 {[%emt 0:10:51]} Na5 {[%emt 0:03:34]} 13. f4 {[%emt 0:07:26]} Qb6 {[%emt 0:02:39]} 14. Kh1 {[%emt 0:00:45]} Nb3 {[%emt 0:01:41]} 15. Nxb3 {[%emt 0:00:29]} Bxb3 {[%emt 0:00:04]} 16. Qe2 {[%emt 0:04:29]} e6 {[%emt 0:02:05]} 17. a5 {[%emt 0:04:40]} Qc7 {[%emt 0:00:49]} 18. Re1 {[%emt 0:01:28]} c4 {[%emt 0:00:50]} 19. d4 {[%emt 0:00:40]} d5 {[%emt 0:00:10]} 20. e5 {[%emt 0:01:03]} Nd7 {[%emt 0:00:20]} 21. g4 {[%emt 0:01:12]} Nb8 {[%emt 0:01:01]} 22. f5 {[%emt 0:01:37]} Rfe8 {[%emt 0:00:34]} 23. fxe6 {[%emt 0:00:21]} fxe6 {[%emt 0:00:07]} 24. Bg5 {[%emt 0:00:51]} Rf8 {[%emt 0:00:30]} 25. Qd2 {[%emt 0:01:00]} Nc6 {[%emt 0:00:21]} 26. Bh6 {[%emt 0:00:52]} Bxh6 {[%emt 0:00:22]} 27. Qxh6 {[%emt 0:00:03]} Qg7 {[%emt 0:00:04]} 28. Qxg7+ {[%emt 0:03:50]} Kxg7 {[%emt 0:00:02]} 29. Kg1 {[%emt 0:00:19]} Rf4 {[%emt 0:00:37]} 30. h3 {[%emt 0:00:53]} Rcf8 {[%emt 0:00:13]} 31. Rf1 {[%emt 0:00:05]} Rxf1+ {[%emt 0:00:22]} 32. Bxf1 {[%emt 0:00:06]} a6 {[%emt 0:00:14]} 33. Bg2 {[%emt 0:00:25]} Bc2 {[%emt 0:00:34]} 34. Nf3 {[%emt 0:00:13]} Be4 {[%emt 0:00:35]} 35. Ng5 {[%emt 0:00:06]} Nd8 {[%emt 0:01:39]} 36. Bxe4 {[%emt 0:00:10]} dxe4 {[%emt 0:00:11]} 37. Nxe4 {[%emt 0:00:02]} Rf3 {[%emt 0:00:29]} 38. Nf2 {[%emt 0:01:04]} Re3 {[%emt 0:00:18]} 39. Ra4 {[%emt 0:00:11]} Re1+ {[%emt 0:00:52]} 40. Kg2 {[%emt 0:00:01]} Rb1 {[%emt 0:00:01]} 41. Rxc4 {[%emt 0:00:03]} Rxb2 {[%emt 0:00:33]} 42. Rc7+ {[%emt 0:00:02]} Nf7 {[%emt 0:00:10]} 43. Kg3 {[%emt 0:00:12]} Kf8 {[%emt 0:00:24]} 44. Ne4 {[%emt 0:00:07]} Rb5 {[%emt 0:00:36]} 45. Nd6 {[%emt 0:00:08]} Nxd6 {[%emt 0:00:27]} 46. exd6 {[%emt 0:00:01]} Rd5 {[%emt 0:00:21]} 47. Rxb7 {[%emt 0:00:16]} Rxd6 {[%emt 0:00:05]} 48. Rxh7 {[%emt 0:00:03]} Rd5 {[%emt 0:00:10]} 49. Rc7 {[%emt 0:01:10]} Rxa5 {[%emt 0:00:05]} 50. Kf4 {[%emt 0:00:06]} Rd5 {[%emt 0:00:46]} 51. Ke4 {[%emt 0:00:15]} a5 {[%emt 0:00:12]} 52. Ra7 {[%emt 0:00:04]} Rb5 {[%emt 0:00:14]} 53. c4 {[%emt 0:00:05]} Rb4 {[%emt 0:00:06]} 54. Rxa5 {[%emt 0:00:05]} Rxc4 {[%emt 0:00:08]} 55. Rc5 {[%emt 0:00:53]} Ra4 {[%emt 0:00:18]} 56. Ke5 {[%emt 0:00:07]} 1-0

[Event "Slovakia Open 2022"]
[Site "Bratislava"]
[Date "2022.10.02"]
[Round "9.29"]
[White "Dubnicka, Ferdinand"]
[Black "Rehacek, Oldrich"]
[Result "0-1"]
[ECO "B00"]
[WhiteElo "1494"]
[BlackElo "1366"]
[Annotator "NA RC COMBH"]
[PlyCount "128"]
[EventDate "2022.09.30"]
[EventCountry "SVK"]
[SourceTitle "playchess.com"]
[Source "ChessBase"]
[SourceQuality "1"]
[TimeControl "2700+10"]

1. e4 {[%emt 0:00:25]} b6 {[%emt 0:00:04]} 2. Nc3 {[%emt 0:00:03]} Bb7 {[%emt 0:00:02]} 3. Nf3 {[%emt 0:00:01]} e6 {[%emt 0:00:02]} 4. Bc4 {[%emt 0:00:03]} Bb4 {[%emt 0:00:12]} 5. O-O {[%emt 0:00:03]} Bxc3 {[%emt 0:00:29]} 6. dxc3 {[%emt 0:00:10]} Bxe4 {[%emt 0:00:08]} 7. Re1 {[%emt 0:00:02]} Nf6 {[%emt 0:00:45]} 8. Bg5 {[%emt 0:00:00]} Bb7 {[%emt 0:00:18]} 9. Qd4 {[%emt 0:00:17]} Bxf3 {[%emt 0:01:11]} 10. gxf3 {[%emt 0:00:11]} Nc6 {[%emt 0:01:18]} 11. Qf4 {[%emt 0:00:12]} h6 {[%emt 0:05:00]} 12. Bxf6 {[%emt 0:00:42]} gxf6 {[%emt 0:01:41]} 13. Rad1 {[%emt 0:00:06]} f5 {[%emt 0:01:38]} 14. Kh1 {[%emt 0:00:27]} Ne7 {[%emt 0:02:12]} 15. Rg1 {[%emt 0:00:07]} Ng6 {[%emt 0:00:19]} 16. Qd4 {[%emt 0:00:05]} Ke7 {[%emt 0:01:40]} 17. f4 {[%emt 0:01:04]} Nh4 {[%emt 0:01:32]} 18. Rg3 {[%emt 0:00:29]} d5 {[%emt 0:03:23]} 19. Be2 {[%emt 0:00:13]} Rg8 {[%emt 0:01:44]} 20. Rdg1 {[%emt 0:00:08]} Rxg3 {[%emt 0:01:44]} 21. Rxg3 {[%emt 0:00:28]} Qh8 {[%emt 0:03:00]} 22. Qb4+ {[%emt 0:02:19]} c5 {[%emt 0:00:12]} 23. Qa4 {[%emt 0:00:06]} c4 {[%emt 0:01:44]} 24. Qc6 {[%emt 0:00:27]} Ng6 {[%emt 0:01:46]} 25. Qc7+ {[%emt 0:00:06]} Kf6 {[%emt 0:00:39]} 26. Bh5 {[%emt 0:00:02]} Qc8 {[%emt 0:01:25]} 27. Qd6 {[%emt 0:00:03]} Qd8 {[%emt 0:00:49]} 28. Rxg6+ {[%emt 0:00:27]} fxg6 {[%emt 0:00:10]} 29. Qe5+ {[%emt 0:00:01]} Kf7 {[%emt 0:00:51]} 30. Bf3 {[%emt 0:00:19]} Qb8 {[%emt 0:02:29]} 31. Qd4 {[%emt 0:00:10]} Qh8 {[%emt 0:00:39]} 32. Qe3 {[%emt 0:00:06]} Rg8 {[%emt 0:00:20]} 33. a4 {[%emt 0:00:21]} Qg7 {[%emt 0:00:41]} 34. a5 {[%emt 0:00:03]} Rb8 {[%emt 0:00:42]} 35. axb6 {[%emt 0:00:22]} axb6 {[%emt 0:00:29]} 36. h4 {[%emt 0:00:03]} Qf6 {[%emt 0:00:30]} 37. h5 {[%emt 0:00:09]} Qh4+ {[%emt 0:01:05]} 38. Kg2 {[%emt 0:00:01]} gxh5 {[%emt 0:00:26]} 39. Qe5 {[%emt 0:00:03]} Rg8+ {[%emt 0:00:15]} 40. Kf1 {[%emt 0:00:03]} Qh3+ {[%emt 0:01:03]} 41. Ke2 {[%emt 0:00:26]} Qh4 {[%emt 0:01:49]} 42. Qc7+ {[%emt 0:00:03]} Qe7 {[%emt 0:00:14]} 43. Qxb6 {[%emt 0:00:01]} Kg6 {[%emt 0:01:29]} 44. Qd4 {[%emt 0:00:47]} h4 {[%emt 0:00:19]} 45. Qd1 {[%emt 0:00:03]} h3 {[%emt 0:00:45]} 46. Qg1+ {[%emt 0:00:06]} Kf7 {[%emt 0:00:02]} 47. Qh1 {[%emt 0:01:29]} Qh4 {[%emt 0:00:15]} 48. Qa1 {[%emt 0:00:05]} h2 {[%emt 0:01:23]} 49. Qa7+ {[%emt 0:00:04]} Qe7 {[%emt 0:00:24]} 50. Bh5+ {[%emt 0:00:10]} Kf8 {[%emt 0:00:10]} 51. Qb8+ {[%emt 0:00:07]} Kg7 {[%emt 0:00:09]} 52. Qe5+ {[%emt 0:00:01]} Kh7 {[%emt 0:00:38]} 53. Bf3 {[%emt 0:00:06]} Rg1 {[%emt 0:00:29]} 54. Bxd5 {[%emt 0:00:09]} h1=Q {[%emt 0:00:12]} 55. Bxh1 {[%emt 0:00:02]} Rxh1 {[%emt 0:00:02]} 56. Qd4 {[%emt 0:00:07]} h5 {[%emt 0:00:47]} 57. Qxc4 {[%emt 0:00:02]} h4 {[%emt 0:00:00]} 58. Qc6 {[%emt 0:00:03]} Rg1 {[%emt 0:00:22]} 59. Qf3 {[%emt 0:00:05]} Qg7 {[%emt 0:00:13]} 60. Qh5+ {[%emt 0:00:04]} Qh6 {[%emt 0:00:07]} 61. Qf7+ {[%emt 0:00:10]} Rg7 {[%emt 0:00:05]} 62. Qe8 {[%emt 0:00:11]} h3 {[%emt 0:00:05]} 63. b4 {[%emt 0:00:13]} h2 {[%emt 0:00:03]} 64. Qc6 {[%emt 0:00:01]} h1=Q {[%emt 0:00:15]} 0-1

[Event "Slovakia Open 2022"]
[Site "Bratislava"]
[Date "2022.10.02"]
[Round "9.30"]
[White "Hryshko Herman"]
[Black "Romanova, Ela"]
[Result "1-0"]
[ECO "D37"]
[WhiteElo "1000"]
[BlackElo "1580"]
[Annotator "NA RC COMBH"]
[PlyCount "109"]
[EventDate "2022.09.30"]
[EventCountry "SVK"]
[SourceTitle "playchess.com"]
[Source "ChessBase"]
[SourceQuality "1"]
[TimeControl "2700+10"]

1. d4 {[%emt 0:00:03]} d5 {[%emt 0:00:02]} 2. c4 {[%emt 0:00:04]} c6 {[%emt 0:00:03]} 3. Nc3 {[%emt 0:00:14]} Nf6 {[%emt 0:00:01]} 4. Bf4 {[%emt 0:00:23]} e6 {[%emt 0:00:20]} 5. c5 {[%emt 0:00:22]} Nbd7 {[%emt 0:00:08]} 6. e3 {[%emt 0:00:20]} Be7 {[%emt 0:00:35]} 7. Nf3 {[%emt 0:00:13]} O-O {[%emt 0:00:02]} 8. Bd3 {[%emt 0:00:16]} b6 {[%emt 0:00:15]} 9. b4 {[%emt 0:00:25]} a5 {[%emt 0:00:15]} 10. Qa4 {[%emt 0:00:20]} Ba6 {[%emt 0:07:45]} 11. Bxa6 {[%emt 0:08:48]} Rxa6 {[%emt 0:00:53]} 12. b5 {[%emt 0:00:09]} cxb5 {[%emt 0:00:56]} 13. Qxb5 {[%emt 0:00:24]} Qa8 {[%emt 0:04:30]} 14. c6 {[%emt 0:00:52]} Rc8 {[%emt 0:06:11]} 15. c7 {[%emt 0:00:46]} a4 {[%emt 0:01:15]} 16. a3 {[%emt 0:01:21]} Ra5 {[%emt 0:01:25]} 17. Qb2 {[%emt 0:00:17]} Nh5 {[%emt 0:02:47]} 18. Nb5 {[%emt 0:05:44]} Nxf4 {[%emt 0:01:48]} 19. exf4 {[%emt 0:00:05]} Qc6 {[%emt 0:06:40]} 20. Rb1 {[%emt 0:00:26]} Rxb5 {[%emt 0:04:54]} 21. Qxb5 {[%emt 0:00:45]} Qxb5 {[%emt 0:01:36]} 22. Rxb5 {[%emt 0:00:04]} Rxc7 {[%emt 0:00:02]} 23. Kd2 {[%emt 0:01:29]} Bxa3 {[%emt 0:01:44]} 24. Ra1 {[%emt 0:00:24]} Bd6 {[%emt 0:00:11]} 25. Ne5 {[%emt 0:00:32]} a3 {[%emt 0:00:48]} 26. g3 {[%emt 0:00:42]} Nf6 {[%emt 0:01:10]} 27. f3 {[%emt 0:00:51]} Rb7 {[%emt 0:00:34]} 28. Ng4 {[%emt 0:01:00]} Ne8 {[%emt 0:01:33]} 29. Rb3 {[%emt 0:00:50]} Be7 {[%emt 0:00:12]} 30. Ne5 {[%emt 0:00:38]} Nd6 {[%emt 0:00:13]} 31. Nc6 {[%emt 0:00:37]} Bf8 {[%emt 0:00:03]} 32. Kd3 {[%emt 0:00:18]} Nc4 {[%emt 0:00:06]} 33. Ne5 {[%emt 0:00:29]} Rc7 {[%emt 0:00:35]} 34. h4 {[%emt 0:08:42]} f6 {[%emt 0:00:03]} 35. Ng4 {[%emt 0:00:54]} Rb7 {[%emt 0:00:04]} 36. Ne3 {[%emt 0:01:03]} b5 {[%emt 0:00:02]} 37. f5 {[%emt 0:03:24]} Kf7 {[%emt 0:00:08]} 38. fxe6+ {[%emt 0:01:26]} Kxe6 {[%emt 0:00:01]} 39. g4 {[%emt 0:00:19]} Na5 {[%emt 0:00:18]} 40. Rbxa3 {[%emt 0:02:39]} Bxa3 {[%emt 0:00:06]} 41. Rxa3 {[%emt 0:00:01]} Nc4 {[%emt 0:00:35]} 42. Ra6+ {[%emt 0:01:26]} Rb6 {[%emt 0:00:07]} 43. Ra7 {[%emt 0:00:02]} b4 {[%emt 0:00:36]} 44. Nxc4 {[%emt 0:00:21]} dxc4+ {[%emt 0:00:01]} 45. Kxc4 {[%emt 0:00:04]} b3 {[%emt 0:00:12]} 46. Ra1 {[%emt 0:00:19]} b2 {[%emt 0:00:15]} 47. Rb1 {[%emt 0:00:05]} g6 {[%emt 0:00:28]} 48. f4 {[%emt 0:00:15]} h5 {[%emt 0:00:20]} 49. d5+ {[%emt 0:00:15]} Kd6 {[%emt 0:00:01]} 50. f5 {[%emt 0:00:15]} hxg4 {[%emt 0:00:22]} 51. fxg6 {[%emt 0:00:03]} Ke7 {[%emt 0:00:04]} 52. h5 {[%emt 0:00:06]} g3 {[%emt 0:00:08]} 53. h6 {[%emt 0:00:09]} g2 {[%emt 0:00:05]} 54. h7 {[%emt 0:00:36]} Rb8 {[%emt 0:00:12]} 55. g7 {[%emt 0:00:04]} 1-0

[Event "Slovakia Open 2022"]
[Site "Bratislava"]
[Date "2022.10.02"]
[Round "9.31"]
[White "Malaschitz, Teodor"]
[Black "Shykhnenko, Hryhorii"]
[Result "1-0"]
[ECO "C48"]
[WhiteElo "1448"]
[BlackElo "1317"]
[Annotator "NA RC COMBH"]
[PlyCount "85"]
[EventDate "2022.09.30"]
[EventCountry "SVK"]
[SourceTitle "playchess.com"]
[Source "ChessBase"]
[SourceQuality "1"]
[TimeControl "2700+10"]

1. e4 {[%emt 0:00:03]} e5 {[%emt 0:00:00]} 2. Nf3 {[%emt 0:00:01]} Nf6 {[%emt 0:00:02]} 3. Nc3 {[%emt 0:00:01]} Nc6 {[%emt 0:00:03]} 4. Bb5 {[%emt 0:00:03]} Nd4 {[%emt 0:00:02]} 5. Be2 {[%emt 0:00:10]} Nc6 {[%emt 0:00:21]} 6. d3 {[%emt 0:00:07]} d6 {[%emt 0:00:03]} 7. Bg5 {[%emt 0:00:02]} Be7 {[%emt 0:00:01]} 8. O-O {[%emt 0:00:03]} Bg4 {[%emt 0:00:05]} 9. h3 {[%emt 0:00:02]} Bh5 {[%emt 0:00:01]} 10. Bxf6 {[%emt 0:00:11]} Bxf6 {[%emt 0:00:04]} 11. Nd5 {[%emt 0:00:02]} Bxf3 {[%emt 0:00:10]} 12. Bxf3 {[%emt 0:00:03]} Nd4 {[%emt 0:00:02]} 13. c3 {[%emt 0:00:02]} Nxf3+ {[%emt 0:00:17]} 14. Qxf3 {[%emt 0:00:03]} c6 {[%emt 0:00:03]} 15. Nxf6+ {[%emt 0:00:02]} Qxf6 {[%emt 0:00:02]} 16. Qxf6 {[%emt 0:00:03]} gxf6 {[%emt 0:00:04]} 17. Rad1 {[%emt 0:00:06]} O-O-O {[%emt 0:00:14]} 18. d4 {[%emt 0:00:10]} c5 {[%emt 0:00:08]} 19. d5 {[%emt 0:00:00]} Rhg8 {[%emt 0:00:11]} 20. Rd3 {[%emt 0:00:00]} b5 {[%emt 0:00:25]} 21. Rf3 {[%emt 0:00:00]} Rg6 {[%emt 0:00:02]} 22. b3 {[%emt 0:00:00]} Rdg8 {[%emt 0:00:09]} 23. g3 {[%emt 0:00:08]} Kc7 {[%emt 0:00:47]} 24. Kh2 {[%emt 0:00:04]} h5 {[%emt 0:00:05]} 25. h4 {[%emt 0:00:02]} Rh8 {[%emt 0:00:03]} 26. Re3 {[%emt 0:00:12]} Kd7 {[%emt 0:00:19]} 27. Rb1 {[%emt 0:00:07]} Rb8 {[%emt 0:00:35]} 28. Ree1 {[%emt 0:00:21]} Rbg8 {[%emt 0:00:34]} 29. b4 {[%emt 0:00:04]} c4 {[%emt 0:00:03]} 30. Ra1 {[%emt 0:00:03]} a6 {[%emt 0:01:32]} 31. a4 {[%emt 0:00:03]} Rc8 {[%emt 0:00:02]} 32. Re2 {[%emt 0:00:14]} Rgg8 {[%emt 0:00:12]} 33. Rea2 {[%emt 0:00:02]} Rc7 {[%emt 0:00:09]} 34. axb5 {[%emt 0:00:03]} axb5 {[%emt 0:00:02]} 35. Ra7 {[%emt 0:00:20]} Rgc8 {[%emt 0:02:34]} 36. Kh3 {[%emt 0:00:10]} Ke7 {[%emt 0:00:25]} 37. f3 {[%emt 0:00:23]} Kf8 {[%emt 0:01:04]} 38. R1a5 {[%emt 0:00:15]} Rb8 {[%emt 0:00:06]} 39. g4 {[%emt 0:00:53]} hxg4+ {[%emt 0:00:36]} 40. fxg4 {[%emt 0:00:30]} Rxa7 {[%emt 0:00:22]} 41. Rxa7 {[%emt 0:00:09]} Kg7 {[%emt 0:01:00]} 42. h5 {[%emt 0:00:07]} Rb6 {[%emt 0:00:50]} 43. Kh4 {[%emt 0:00:15]} 1-0

[Event "Slovakia Open 2022"]
[Site "Bratislava"]
[Date "2022.10.02"]
[Round "9.32"]
[White "Dolnik, Michal"]
[Black "Nikpour Aryabod"]
[Result "1/2-1/2"]
[ECO "B13"]
[WhiteElo "1485"]
[BlackElo "1000"]
[Annotator "NA COMBH"]
[PlyCount "98"]
[EventDate "2022.09.30"]
[EventCountry "SVK"]
[SourceTitle "playchess.com"]
[Source "ChessBase"]
[SourceQuality "1"]
[TimeControl "2700+10"]

1. e4 {[%emt 0:00:04]} c6 {[%emt 0:00:01]} 2. d4 {[%emt 0:00:06]} d5 {[%emt 0:00:01]} 3. exd5 {[%emt 0:00:03]} cxd5 {[%emt 0:00:03]} 4. Nf3 {[%emt 0:00:01]} Nc6 {[%emt 0:00:01]} 5. Bd3 {[%emt 0:00:33]} Bg4 {[%emt 0:00:05]} 6. c3 {[%emt 0:00:17]} Nf6 {[%emt 0:00:07]} 7. Nbd2 {[%emt 0:00:05]} e6 {[%emt 0:00:12]} 8. h3 {[%emt 0:00:25]} Bxf3 {[%emt 0:00:23]} 9. Nxf3 {[%emt 0:00:04]} h6 {[%emt 0:00:14]} 10. Bf4 {[%emt 0:00:14]} Bd6 {[%emt 0:00:04]} 11. Bxd6 {[%emt 0:00:05]} Qxd6 {[%emt 0:00:03]} 12. Qe2 {[%emt 0:00:11]} O-O {[%emt 0:00:16]} 13. Ne5 {[%emt 0:00:11]} Nd7 {[%emt 0:01:37]} 14. Nf3 {[%emt 0:00:17]} Rfe8 {[%emt 0:00:11]} 15. O-O-O {[%emt 0:00:14]} e5 {[%emt 0:01:11]} 16. dxe5 {[%emt 0:00:34]} Ndxe5 {[%emt 0:00:31]} 17. Nxe5 {[%emt 0:00:02]} f6 {[%emt 0:02:08]} 18. Qc2 {[%emt 0:00:06]} fxe5 {[%emt 0:00:13]} 19. Be4 {[%emt 0:00:30]} Qf6 {[%emt 0:02:35]} 20. Bxd5+ {[%emt 0:00:08]} Kh8 {[%emt 0:00:09]} 21. Rhe1 {[%emt 0:00:24]} Rac8 {[%emt 0:01:52]} 22. Re3 {[%emt 0:00:23]} Nb4 {[%emt 0:02:48]} 23. Qe2 {[%emt 0:01:16]} Nxd5 {[%emt 0:03:27]} 24. Rxd5 {[%emt 0:00:28]} Qf4 {[%emt 0:01:04]} 25. Kb1 {[%emt 0:00:31]} Rcd8 {[%emt 0:02:23]} 26. Rxd8 {[%emt 0:00:48]} Rxd8 {[%emt 0:00:04]} 27. Rxe5 {[%emt 0:06:56]} Rd1+ {[%emt 0:03:39]} 28. Qxd1 {[%emt 0:00:25]} Qxe5 {[%emt 0:00:02]} 29. Qd8+ {[%emt 0:00:42]} Kh7 {[%emt 0:00:01]} 30. Qd3+ {[%emt 0:00:02]} Kh8 {[%emt 0:00:03]} 31. Kc2 {[%emt 0:00:04]} Qe8 {[%emt 0:00:18]} 32. b3 {[%emt 0:01:22]} Qe7 {[%emt 0:00:52]} 33. Kb2 {[%emt 0:00:54]} Qf6 {[%emt 0:00:23]} 34. Qf3 {[%emt 0:00:13]} Qd6 {[%emt 0:00:19]} 35. Qe3 {[%emt 0:00:24]} b6 {[%emt 0:00:44]} 36. f3 {[%emt 0:00:43]} Qg3 {[%emt 0:00:57]} 37. Qe2 {[%emt 0:00:42]} a5 {[%emt 0:01:12]} 38. c4 {[%emt 0:00:40]} Qg6 {[%emt 0:00:58]} 39. g4 {[%emt 0:01:05]} Qf6+ {[%emt 0:00:29]} 40. Kb1 {[%emt 0:01:06]} Qg6+ {[%emt 0:00:44]} 41. Qe4 {[%emt 0:00:13]} Qd6 {[%emt 0:00:10]} 42. Qe8+ {[%emt 0:01:27]} Kh7 {[%emt 0:00:08]} 43. Qe4+ {[%emt 0:00:36]} Kh8 {[%emt 0:00:03]} 44. Kc2 {[%emt 0:00:11]} Qh2+ {[%emt 0:00:08]} 45. Kc3 {[%emt 0:00:32]} Qxa2 {[%emt 0:00:19]} 46. Qe8+ {[%emt 0:00:47]} Kh7 {[%emt 0:00:02]} 47. Qa4 {[%emt 0:00:19]} Qf2 {[%emt 0:00:14]} 48. Qc6 {[%emt 0:00:40]} Qe3+ {[%emt 0:00:14]} 49. Kc2 {[%emt 0:00:07]} Qe2+ {[%emt 0:00:09]} 1/2-1/2

[Event "Slovakia Open 2022"]
[Site "Bratislava"]
[Date "2022.10.02"]
[Round "9.33"]
[White "Rehacek, Jan"]
[Black "Nosal, Tobias"]
[Result "0-1"]
[ECO "D02"]
[WhiteElo "1342"]
[BlackElo "1601"]
[Annotator "NA RC COMBH"]
[PlyCount "21"]
[EventDate "2022.09.30"]
[EventCountry "SVK"]
[SourceTitle "playchess.com"]
[Source "ChessBase"]
[SourceQuality "1"]
[TimeControl "2700+10"]

1. d4 {[%emt 0:00:06]} d5 {[%emt 0:00:02]} 2. Nf3 {[%emt 0:00:16]} c5 {[%emt 0:00:31]} 3. Bf4 {[%emt 0:00:10]} Nc6 {[%emt 0:00:10]} 4. e3 {[%emt 0:00:24]} e6 {[%emt 0:00:21]} 5. Nc3 {[%emt 0:00:14]} Bd6 {[%emt 0:00:31]} 6. Bxd6 {[%emt 0:01:22]} Qxd6 {[%emt 0:01:01]} 7. Bb5 {[%emt 0:06:08]} Nf6 {[%emt 0:00:10]} 8. Ne2 {[%emt 0:00:10]} Bd7 {[%emt 0:00:10]} 9. c3 {[%emt 0:00:10]} e5 {[%emt 0:00:10]} 10. dxe5 {[%emt 0:00:10]} Nxe5 {[%emt 0:00:10]} 11. Bxd7+ {[%emt 0:06:15]} 0-1